bitfinex/quotes_SOLUSD_20250126
["timestamp","ask_amount","ask_price","bid_price","bid_amount"]
[1737867514954,0.063,258.71,258.7,27.642284]
[1737867517879,0.063,258.71,258.7,57.642284]
[1737867519972,0.063,258.71,258.7,27.642284]
[1737867521174,0.063,258.71,258.7,3.8654]
[1737867521346,0.063,258.71,258.68,3.8956]
[1737867524180,0.063,258.71,258.69,20.0]
[1737867527877,0.063,258.71,258.69,23.8655]
[1737867530579,0.063,258.71,258.7,24.16335267]
[1737867531661,0.063,258.71,258.7,23.776884]
[1737867532473,0.063,258.71,258.7,30.0]
[1737867534275,1.063,258.71,258.7,30.0]
[1737867534779,1.063,258.71,258.69,23.8655]
[1737867535778,1.063,258.71,258.68,20.03]
[1737867536154,0.063,258.71,258.68,20.03]
[1737867536380,0.063,258.71,258.69,23.776884]
[1737867536869,0.063,258.71,258.7,20.0]
[1737867537072,1.063,258.71,258.68,0.03]
[1737867537275,1.063,258.71,258.68,30.03]
[1737867537881,0.063,258.71,258.68,30.03]
[1737867538088,0.063,258.71,258.69,3.8656]
[1737867538287,1.063,258.71,258.69,3.8656]
[1737867540763,1.063,258.71,258.69,20.0]
[1737867542091,1.063,258.71,258.69,23.8655]
[1737867544295,0.063,258.71,258.69,23.8655]
[1737867544668,1.063,258.71,258.69,23.8655]
[1737867545568,0.063,258.71,258.69,23.8655]
[1737867546973,1.063,258.71,258.68,0.03]
[1737867547195,1.063,258.71,258.7,20.0]
[1737867547995,1.063,258.71,258.68,20.03]
[1737867549494,1.063,258.71,258.68,0.03]
[1737867549698,1.063,258.71,258.68,3.8957]
[1737867552600,1.063,258.71,258.68,0.03]
[1737867552798,1.063,258.71,258.68,20.03]
[1737867552999,1.0,258.69,258.68,0.03]
[1737867555979,7.71962021,258.69,258.68,0.03]
[1737867556612,1.0,258.69,258.68,0.03]
[1737867556897,0.063,258.71,258.68,0.03]
[1737867557277,1.0,258.7,258.68,0.03]
[1737867560605,7.71962021,258.7,258.68,0.03]
[1737867560778,11.58512021,258.7,258.68,0.03]
[1737867565821,80.9,258.69,258.68,0.03]
[1737867572127,11.64812021,258.7,258.68,0.03]
[1737867581735,23.776884,258.69,258.68,0.03]
[1737867583521,29.876084,258.69,258.68,0.03]
[1737867588211,36.59570421,258.69,258.68,0.03]
[1737867590238,11.64812021,258.7,258.68,0.03]
[1737867595138,23.776884,258.69,258.68,0.03]
[1737867596538,11.64812021,258.7,258.68,0.03]
[1737867599022,1.063,258.7,258.68,0.03]
[1737867603045,0.063,258.7,258.68,0.03]
[1737867604531,1.063,258.7,258.68,0.03]
[1737867605721,6.71962021,258.69,258.68,0.03]
[1737867609142,30.49650421,258.69,258.68,0.03]
[1737867609450,23.776884,258.69,258.68,0.03]
[1737867609826,3.8656,258.69,258.68,0.03]
[1737867610060,1.063,258.7,258.68,0.03]
[1737867610223,0.063,258.7,258.68,0.03]
[1737867614840,0.063,258.7,258.68,30.03]
[1737867616263,0.063,258.7,258.68,0.03]
[1737867616459,0.063,258.7,258.68,23.8956]
[1737867617649,0.063,258.7,258.68,53.8956]
[1737867618939,0.063,258.7,258.68,3.8956]
[1737867621939,0.063,258.7,258.68,33.8956]
[1737867624585,0.063,258.73,258.7,11.6]
[1737867624865,1.063,258.89,258.82,43.776884]
[1737867625044,1.063,258.89,258.83,3.14623693]
[1737867625446,1.0,258.87,258.82,20.0]
[1737867625767,1.0,258.87,258.83,30.0]
[1737867626363,1.0,258.87,258.82,20.0]
[1737867626746,1.063,258.89,258.84,20.0]
[1737867627648,1.063,258.89,258.84,0.38627792]
[1737867627848,1.063,258.89,258.86,20.0]
[1737867628652,1.063,258.89,258.85,23.8631]
[1737867629569,1.063,258.89,258.85,20.0]
[1737867629764,1.063,258.89,258.85,23.8632]
[1737867630274,1.0,258.87,258.81,2.76]
[1737867630446,1.0,258.87,258.83,20.0]
[1737867630847,1.0,258.87,258.84,20.0]
[1737867632596,1.0,258.87,258.85,32.021284]
[1737867632744,0.063,258.96,258.89,47.639484]
[1737867632949,0.063,259.02,258.96,20.0]
[1737867634454,0.063,259.02,258.96,3.8616]
[1737867635500,0.063,259.02,258.95,2.76]
[1737867635793,0.063,259.02,258.95,6.6216]
[1737867640968,0.063,259.02,258.95,2.76]
[1737867641174,84.7608,259.01,258.91,3.8622]
[1737867641369,84.7608,259.01,258.92,20.0]
[1737867641370,80.9,259.01,258.92,20.0]
[1737867641576,1.6769,258.98,258.92,20.0]
[1737867641775,80.9,258.96,258.86,2.76]
[1737867642079,80.9,258.95,258.86,2.76]
[1737867642477,80.9,258.94,258.86,2.76]
[1737867642985,84.7619,258.94,258.86,2.76]
[1737867643498,84.7619,258.94,258.84,3.8633]
[1737867643681,84.7619,258.94,258.83,0.03]
[1737867644076,84.7619,258.94,258.84,20.0]
[1737867644608,80.9,258.93,258.84,20.0]
[1737867644780,3.8623,258.91,258.83,0.03]
[1737867645177,80.9,258.9,258.83,0.03]
[1737867645390,91.37013156,258.9,258.83,0.03]
[1737867645873,1.6139,258.89,258.83,0.03]
[1737867646306,80.9,258.88,258.83,0.03]
[1737867646602,91.37013156,258.88,258.83,0.03]
[1737867646779,10.47013156,258.86,258.83,0.03]
[1737867646976,80.9,258.87,258.83,0.03]
[1737867646977,10.47013156,258.84,258.83,0.03]
[1737867648000,34.24701556,258.84,258.83,0.03]
[1737867648201,10.47013156,258.79,258.68,0.03]
[1737867648408,1.6139,258.77,258.69,20.0]
[1737867649708,1.6139,258.77,258.68,0.03]
[1737867650100,1.6139,258.77,258.69,20.0]
[1737867651307,5.4784,258.77,258.68,0.03]
[1737867651497,15.94853156,258.77,258.68,0.03]
[1737867652522,1.6139,258.77,258.68,3.8957]
[1737867653520,10.47013156,258.76,258.68,0.03]
[1737867654992,80.9,258.75,258.68,0.03]
[1737867656123,84.7647,258.75,258.68,0.03]
[1737867658417,95.23503156,258.74,258.68,0.03]
[1737867658627,10.47013156,258.69,258.68,0.03]
[1737867664127,10.47013156,258.71,258.68,0.03]
[1737867664510,10.47013156,258.69,258.68,0.03]
[1737867665138,10.47013156,258.71,258.68,0.03]
[1737867666021,10.47013156,258.73,258.68,0.03]
[1737867668832,14.33513156,258.73,258.68,0.03]
[1737867669341,35.82611556,258.69,258.68,0.03]
[1737867669830,10.47013156,258.62,258.57,0.03]
[1737867670131,80.9,258.61,258.57,0.03]
[1737867671733,84.7668,258.61,258.57,0.03]
[1737867673119,10.47013156,258.58,258.57,0.03]
[1737867673815,91.37013156,258.58,258.57,0.03]
[1737867674131,95.23733156,258.58,258.57,0.03]
[1737867682953,119.01421556,258.58,258.57,0.03]
[1737867684657,38.11421556,258.58,258.57,0.03]
[1737867685852,14.33733156,258.58,258.57,0.03]
[1737867686548,10.47013156,258.58,258.57,0.03]
[1737867691642,10.58890021,258.59,258.57,0.03]
[1737867698258,26.72180021,258.61,258.57,0.03]
[1737867699059,10.58830021,258.63,258.57,0.03]
[1737867700061,6.72180021,258.63,258.57,0.03]
[1737867700244,8.35730021,258.65,258.57,0.03]
[1737867700443,6.72180021,258.61,258.57,0.03]
[1737867700766,80.9,258.62,258.57,0.03]
[1737867705648,80.9,258.61,258.57,0.03]
[1737867707053,80.9,258.67,258.57,0.03]
[1737867707253,80.9,258.67,258.58,20.0]
[1737867707474,0.063,258.68,258.59,23.776884]
[1737867707759,0.063,258.68,258.6,6.2214]
[1737867707960,0.063,258.68,258.61,3.8668]
[1737867709255,0.063,258.68,258.61,5.3986]
[1737867713972,0.063,258.68,258.65,20.0]
[1737867714373,0.063,258.68,258.66,20.0]
[1737867715870,0.063,258.68,258.67,3.8659]
[1737867720789,0.063,258.68,258.67,28.0292894]
[1737867721473,0.063,258.68,258.67,58.0292894]
[1737867724788,0.063,258.68,258.67,33.8659]
[1737867727389,0.063,258.68,258.67,23.8659]
[1737867734295,0.063,258.68,258.67,23.8959]
[1737867746204,0.063,258.68,258.67,0.03]
[1737867746903,80.9,258.8,258.7,20.0]
[1737867747082,0.063,258.83,258.74,20.0]
[1737867748193,0.063,258.83,258.74,23.8647]
[1737867753982,0.063,258.83,258.71,0.38641981]
[1737867753983,6.78480021,258.83,258.71,0.38641981]
[1737867754192,10.64830021,258.83,258.71,33.8652]
[1737867756621,10.64830021,258.83,258.71,20.0]
[1737867757022,0.063,258.83,258.72,23.776884]
[1737867757324,0.063,258.83,258.75,20.0]
[1737867758201,0.063,258.83,258.75,23.8646]
[1737867758897,0.063,258.83,258.76,23.776884]
[1737867759101,0.063,258.83,258.77,0.38634042]
[1737867760196,0.063,258.83,258.78,3.8642]
[1737867760412,0.063,258.83,258.72,1.0]
[1737867760628,0.063,258.83,258.73,3.865]
[1737867761027,0.063,258.83,258.74,23.776884]
[1737867763941,0.063,258.83,258.75,3.8647]
[1737867769147,3.9265,258.83,258.74,23.776884]
[1737867769323,0.063,258.83,258.74,27.641684]
[1737867770948,0.063,258.83,258.77,23.8644]
[1737867771525,0.063,258.83,258.75,3.8646]
[1737867774534,0.063,258.83,258.71,2.74]
[1737867774838,3.9265,258.83,258.72,33.8651]
[1737867775046,10.64830021,258.83,258.72,30.0]
[1737867776324,10.64830021,258.83,258.72,20.0]
[1737867778832,3.9265,258.83,258.72,23.8651]
[1737867779929,3.8638,258.81,258.72,23.8651]
[1737867781864,3.8638,258.81,258.68,0.41643565]
[1737867782057,80.9,258.8,258.7,20.0]
[1737867782933,80.9,258.8,258.72,23.776884]
[1737867783139,80.9,258.8,258.72,20.0]
[1737867784041,80.9,258.8,258.73,3.865]
[1737867784432,0.063,258.83,258.73,3.865]
[1737867784433,0.063,258.83,258.77,20.0]
[1737867786070,0.063,258.83,258.78,3.8642]
[1737867787554,0.063,258.83,258.82,43.776884]
[1737867787753,0.063,258.83,258.82,44.16312214]
[1737867788853,0.063,258.83,258.82,48.02672214]
[1737867789268,0.063,258.83,258.82,47.640484]
[1737867789453,0.063,258.83,258.81,2.74]
[1737867790056,0.063,258.83,258.78,20.0]
[1737867790452,0.063,258.83,258.75,3.8647]
[1737867791166,0.063,258.83,258.77,20.0]
[1737867791543,0.063,258.83,258.77,23.8643]
[1737867794166,0.063,258.83,258.78,27.641084]
[1737867794376,0.063,258.83,258.82,23.776884]
[1737867794570,0.063,258.83,258.82,24.16312319]
[1737867794871,0.063,258.83,258.82,0.38623919]
[1737867795249,0.063,258.94,258.85,23.776884]
[1737867795778,0.063,258.94,258.84,20.38619703]
[1737867796152,0.063,258.94,258.85,23.8632]
[1737867797462,0.063,258.94,258.85,27.640084]
[1737867798675,0.063,258.94,258.85,57.640084]
[1737867799077,0.063,258.94,258.9,23.776884]
[1737867799280,0.063,258.94,258.93,20.0]
[1737867801069,0.063,258.94,258.93,23.862]
[1737867803179,0.063,258.94,258.93,47.638884]
[1737867805171,0.063,258.94,258.89,2.74]
[1737867805367,0.063,258.94,258.9,3.8624]
[1737867805580,0.063,258.94,258.93,20.0]
[1737867806164,0.063,258.94,258.92,20.0]
[1737867806585,0.063,258.94,258.93,43.776884]
[1737867807485,0.063,258.94,258.93,47.638884]
[1737867807693,0.063,258.94,258.83,213.5785]
[1737867807893,0.063,258.94,258.85,20.0]
[1737867808692,0.063,258.94,258.91,20.0]
[1737867809092,0.063,258.94,258.88,20.0]
[1737867810071,0.063,258.94,258.88,3.8627]
[1737867811463,0.063,258.94,258.89,23.8625]
[1737867824788,0.063,258.94,258.93,20.0]
[1737867824990,0.0001,258.94,258.93,43.776884]
[1737867825194,0.0001,258.94,258.93,44.16290715]
[1737867826184,0.0001,258.94,258.93,78.02490715]
[1737867828608,0.063,258.97,258.96,20.0]
[1737867828908,0.063,258.97,258.96,50.38601411]
[1737867829498,0.063,258.97,258.96,74.16289811]
[1737867829885,0.0001,258.98,258.97,23.776884]
[1737867830090,0.063,258.99,258.97,53.776884]
[1737867830390,0.063,258.99,258.98,0.38595445]
[1737867831012,0.063,258.99,258.98,58.02413845]
[1737867832708,0.063,258.99,258.98,28.02413845]
[1737867833788,0.0001,258.99,258.98,28.02413845]
[1737867833985,0.063,259.02,259.01,20.0]
[1737867834210,0.063,259.02,259.01,46.90283229]
[1737867835012,0.063,259.02,259.01,6.6008]
[1737867838412,0.063,259.02,259.01,30.76368374]
[1737867841003,0.063,259.02,259.01,60.76368374]
[1737867845720,0.063,259.02,259.01,30.76368374]
[1737867846927,0.063,259.02,258.99,2.74]
[1737867847096,0.063,259.02,258.99,6.601]
[1737867849329,0.063,259.02,258.93,0.03]
[1737867849519,0.063,259.02,258.93,3.8919]
[1737867849710,0.063,259.02,258.95,20.0]
[1737867849915,0.063,259.02,258.93,3.8919]
[1737867850928,0.063,259.02,258.95,20.0]
[1737867851138,80.963,259.02,258.94,3.8618]
[1737867851330,80.9,259.01,258.93,0.03]
[1737867854328,91.48270021,259.01,258.93,0.03]
[1737867854632,1.5835,258.99,258.93,0.03]
[1737867854929,8.30530021,258.99,258.93,0.03]
[1737867855427,1.5835,258.99,258.93,0.03]
[1737867858810,12.16640021,258.99,258.93,0.03]
[1737867859413,6.2974,258.98,258.93,0.03]
[1737867859928,80.9,258.97,258.93,0.03]
[1737867860109,87.62180021,258.97,258.93,0.03]
[1737867860847,3.8616,258.96,258.93,0.03]
[1737867862243,80.9,258.97,258.93,0.03]
[1737867863147,80.9,258.96,258.93,0.03]
[1737867870931,84.7616,258.96,258.93,0.03]
[1737867874239,91.48360021,258.95,258.93,0.03]
[1737867876856,82.4736,258.94,258.93,0.03]
[1737867880863,1.5736,258.94,258.93,0.03]
[1737867887666,3.862,258.93,258.86,0.03]
[1737867887888,6.72180021,258.92,258.86,0.03]
[1737867888041,8.29540021,258.94,258.86,0.03]
[1737867889048,12.15730021,258.94,258.86,0.03]
[1737867890570,6.72180021,258.92,258.86,0.03]
[1737867890937,10.58400021,258.92,258.86,0.03]
[1737867892874,84.7624,258.91,258.86,0.03]
[1737867898699,80.9,258.9,258.86,0.03]
[1737867899980,84.7625,258.9,258.86,0.03]
[1737867902991,80.9,258.9,258.86,0.03]
[1737867903509,80.963,258.94,258.86,20.03]
[1737867903790,80.963,258.94,258.86,20.4162014]
[1737867904586,80.963,258.94,258.87,30.0]
[1737867904990,80.963,258.94,258.88,24.16307878]
[1737867904991,0.063,258.94,258.88,24.16307878]
[1737867905170,0.063,258.94,258.89,3.8626]
[1737867905375,0.063,258.94,258.9,20.0]
[1737867909798,0.063,258.94,258.86,0.03]
[1737867909968,6.72180021,258.91,258.86,30.03]
[1737867910496,80.9,258.9,258.86,30.03]
[1737867910667,6.72180021,258.89,258.86,0.03]
[1737867910874,6.72180021,258.87,258.86,0.03]
[1737867912702,8.22310021,258.87,258.86,0.03]
[1737867913580,31.99998421,258.87,258.86,0.03]
[1737867913893,32.99998421,258.87,258.86,0.03]
[1737867915389,2.0,258.85,258.82,0.03]
[1737867915691,6.72180021,258.83,258.82,0.03]
[1737867915864,6.72180021,258.83,258.68,30.03]
[1737867915865,6.72180021,258.74,258.68,30.03]
[1737867916064,6.72180021,258.74,258.68,0.03]
[1737867916294,80.9,258.73,258.68,0.03]
[1737867918592,6.72180021,258.72,258.68,0.03]
[1737867918795,80.9,258.71,258.68,0.03]
[1737867919197,91.48730021,258.7,258.68,0.03]
[1737867920915,106.676884,258.69,258.68,0.03]
[1737867922094,108.217584,258.69,258.68,0.03]
[1737867923585,3.8657,258.68,258.67,0.03]
[1737867923784,10.58750021,258.68,258.67,0.03]
[1737867924103,23.776884,258.62,258.6,0.03]
[1737867924286,6.72180021,258.61,258.6,0.03]
[1737867927207,7.72180021,258.61,258.6,0.03]
[1737867927410,6.72180021,258.61,258.6,0.03]
[1737867947813,7.72180021,258.61,258.6,0.03]
[1737867948998,6.72180021,258.61,258.6,0.03]
[1737867960709,7.72180021,258.61,258.6,0.03]
[1737867962323,31.49868421,258.61,258.6,0.03]
[1737867962525,20.0,258.58,258.57,0.03]
[1737867962838,26.72180021,258.58,258.57,0.03]
[1737867963838,30.58900021,258.58,258.57,0.03]
[1737867965313,23.8672,258.58,258.57,0.03]
[1737867966415,10.58900021,258.58,258.57,0.03]
[1737867973253,23.8672,258.58,258.57,0.03]
[1737867977849,10.58900021,258.58,258.57,0.03]
[1737867989172,0.063,258.6,258.57,0.03]
[1737867989173,3.93,258.6,258.57,0.03]
[1737867991778,10.65180021,258.6,258.57,0.03]
[1737867992269,6.72180021,258.58,258.57,0.03]
[1737868004184,31.49868421,258.58,258.57,0.03]
[1737868004483,32.49868421,258.58,258.57,0.03]
[1737868006064,1.0,258.53,258.43,7.7892]
[1737868006371,1.0,258.53,258.42,0.03]
[1737868006372,6.72180021,258.45,258.42,0.03]
[1737868006762,80.9,258.44,258.42,0.03]
[1737868006990,87.62180021,258.44,258.42,0.03]
[1737868007890,6.72180021,258.43,258.42,0.03]
[1737868015392,1.0,258.42,258.37,0.03]
[1737868015573,30.49868421,258.38,258.37,0.03]
[1737868016894,34.36888421,258.38,258.37,0.03]
[1737868017270,34.36888421,258.38,258.31,0.03]
[1737868017271,20.0,258.34,258.31,0.03]
[1737868017466,6.72180021,258.32,258.31,0.03]
[1737868017690,30.49868421,258.32,258.31,0.03]
[1737868018074,57.38588505,258.32,258.31,0.03]
[1737868018691,30.49868421,258.32,258.31,0.03]
[1737868018993,34.36978421,258.32,258.31,0.03]
[1737868020201,61.25698505,258.32,258.31,0.03]
[1737868020378,35.36978421,258.32,258.31,0.03]
[1737868020878,62.25698505,258.32,258.31,0.03]
[1737868021294,62.25698505,258.32,258.31,0.0001]
[1737868022071,23.776884,258.27,258.16,6.2146]
[1737868022276,23.776884,258.27,258.16,0.03]
[1737868022277,6.72180021,258.2,258.16,0.03]
[1737868022899,6.72180021,258.18,258.16,0.03]
[1737868024697,80.9,258.2,258.16,0.03]
[1737868025598,6.72180021,258.24,258.16,0.03]
[1737868025786,6.72180021,258.2,258.16,0.03]
[1737868027881,6.72180021,258.22,258.16,0.03]
[1737868028781,6.72180021,258.24,258.16,0.03]
[1737868029391,80.9,258.23,258.16,0.03]
[1737868034913,6.72180021,258.22,258.16,0.03]
[1737868035316,80.9,258.21,258.16,0.03]
[1737868035704,6.72180021,258.2,258.16,0.03]
[1737868038110,10.59470021,258.2,258.16,0.03]
[1737868041220,80.9,258.19,258.16,0.03]
[1737868042116,6.72180021,258.18,258.16,0.03]
[1737868042629,80.9,258.17,258.16,0.03]
[1737868044220,27.650284,258.17,258.16,0.03]
[1737868044414,27.650284,258.17,258.05,30.0]
[1737868044624,6.72180021,258.09,258.01,12.0143]
[1737868045326,6.72180021,258.11,258.01,12.0143]
[1737868045794,6.72180021,258.13,258.04,20.0]
[1737868045995,6.72180021,258.15,258.04,20.0]
[1737868046200,6.72180021,258.11,258.01,12.0143]
[1737868047401,10.59620021,258.11,258.01,12.0143]
[1737868047798,104.676884,258.1,258.0,0.422]
[1737868048027,6.72180021,258.09,258.0,0.422]
[1737868048212,80.9,258.08,258.0,20.422]
[1737868048529,6.72180021,258.07,258.0,0.422]
[1737868048824,6.72180021,258.03,258.0,0.422]
[1737868049214,6.72180021,258.05,258.0,0.422]
[1737868049926,6.72180021,258.05,257.94,19.922]
[1737868050229,80.9,258.06,257.96,3.8764]
[1737868050928,6.72180021,258.07,257.96,3.8764]
[1737868051120,6.72180021,258.07,257.96,3.3764]
[1737868051530,6.72180021,258.07,257.92,23.776884]
[1737868051703,6.72180021,258.07,257.93,30.0]
[1737868052404,6.72180021,258.07,257.96,20.0]
[1737868052997,6.72180021,258.05,257.96,20.0]
[1737868053401,6.72180021,258.05,257.95,20.0]
[1737868053928,6.72180021,258.05,257.96,3.8765]
[1737868054225,6.72180021,258.07,257.96,3.8765]
[1737868055328,6.78480021,258.07,257.96,3.8765]
[1737868056212,0.063,258.07,258.0,20.0]
[1737868057108,0.063,258.07,258.01,43.776884]
[1737868057709,0.063,258.07,258.05,20.0]
[1737868058305,0.063,258.07,258.06,3.875]
[1737868060811,0.0001,258.07,258.06,3.875]
[1737868061029,0.0001,258.07,258.06,36.480784]
[1737868061233,0.0001,258.07,258.06,11.7039]
[1737868064922,0.0001,258.07,258.06,41.7039]
[1737868067416,6.72180021,258.2,258.06,65.480784]
[1737868067614,80.9,258.27,258.15,20.0]
[1737868067913,6.72180021,258.3,258.19,20.0]
[1737868068321,8.24710021,258.28,258.2,3.8729]
[1737868069760,6.72180021,258.3,258.2,3.8729]
[1737868070244,6.72180021,258.28,258.2,3.8729]
[1737868070652,6.72180021,258.3,258.2,3.8729]
[1737868072547,10.59330021,258.3,258.2,3.8729]
[1737868074540,80.9,258.29,258.2,3.8729]
[1737868077929,80.9,258.29,258.2,33.8729]
[1737868078337,80.9,258.29,258.2,43.5553]
[1737868078646,80.9,258.29,258.2,13.5553]
[1737868081648,80.9,258.29,258.2,43.5553]
[1737868082542,0.063,258.31,258.24,3.8723]
[1737868083425,0.063,258.31,258.24,33.8723]
[1737868083645,0.063,258.31,258.27,20.0]
[1737868085930,0.063,258.31,258.28,3.8717]
[1737868089754,0.063,258.31,258.27,20.0]
[1737868089963,0.063,258.31,258.29,20.0]
[1737868090563,0.063,258.31,258.29,50.0]
[1737868091149,0.063,258.31,258.3,3.8714]
[1737868094134,0.063,258.31,258.3,33.8714]
[1737868095063,10.59150021,258.42,258.3,33.8714]
[1737868095064,1.636,258.47,258.31,1.0]
[1737868095361,8.35780021,258.47,258.33,20.0]
[1737868095539,8.35780021,258.47,258.31,30.0]
[1737868096134,8.35780021,258.47,258.35,20.0]
[1737868096556,8.35780021,258.47,258.35,50.0]
[1737868096859,8.35780021,258.47,258.35,20.0]
[1737868097856,8.35780021,258.47,258.36,3.8705]
[1737868100172,80.9,258.46,258.33,20.0]
[1737868100354,80.9,258.46,258.37,20.0]
[1737868101447,80.9,258.46,258.37,50.0]
[1737868101842,80.9,258.46,258.38,3.8702]
[1737868102275,80.9,258.46,258.41,20.0]
[1737868102450,82.5127,258.54,258.41,20.0]
[1737868102647,80.9,258.53,258.41,20.0]
[1737868103543,80.9,258.53,258.43,20.0]
[1737868103739,80.9,258.53,258.45,20.0]
[1737868104979,0.0001,258.55,258.54,1.0]
[1737868105153,0.063,258.6,258.58,20.0]
[1737868105154,0.0001,258.6,258.58,20.0]
[1737868105477,0.0001,258.61,258.59,0.38659762]
[1737868105665,0.0001,258.61,258.6,27.643784]
[1737868105977,0.0001,258.61,258.6,57.643784]
[1737868106872,0.0001,258.61,258.6,33.8669]
[1737868108674,0.0001,258.61,258.6,57.643784]
[1737868109983,0.0001,258.61,258.6,33.8669]
[1737868110984,0.0001,258.61,258.6,30.0]
[1737868112566,0.0001,258.61,258.54,3.8678]
[1737868112567,0.0001,258.61,258.56,20.0]
[1737868112775,0.0001,258.61,258.53,2.74]
[1737868113081,0.0001,258.61,258.54,30.0]
[1737868113082,1.6024,258.61,258.54,30.0]
[1737868113264,80.9,258.6,258.49,2.74]
[1737868113670,91.38928916,258.6,258.49,2.74]
[1737868114187,3.8672,258.58,258.49,2.74]
[1737868114888,3.8672,258.58,258.49,22.74]
[1737868115285,3.8672,258.58,258.5,20.0]
[1737868116670,3.8672,258.58,258.49,2.74]
[1737868116990,80.9,258.57,258.44,3.8692]
[1737868117291,10.48928916,258.55,258.5,0.03]
[1737868118162,3.8678,258.54,258.5,0.03]
[1737868119191,80.9,258.53,258.5,0.03]
[1737868119689,84.7681,258.53,258.5,0.03]
[1737868119997,8.1991,258.52,258.5,0.03]
[1737868120197,10.48928916,258.51,258.5,0.03]
[1737868122894,14.35758916,258.51,258.5,0.03]
[1737868123278,38.13447316,258.51,258.5,0.03]
[1737868129804,34.37242821,258.51,258.5,0.03]
[1737868137196,3.8683,258.51,258.5,0.03]
[1737868145309,27.645184,258.51,258.5,0.03]
[1737868145610,34.37242821,258.51,258.5,0.03]
[1737868153387,20.0,258.48,258.33,8.8011]
[1737868153612,6.72724421,258.45,258.35,30.0]
[1737868154612,6.72724421,258.45,258.33,9.952]
[1737868155193,6.72724421,258.43,258.33,6.0811]
[1737868155611,3.8696,258.42,258.33,6.0811]
[1737868159029,3.8696,258.42,258.32,0.03]
[1737868160121,80.9,258.41,258.32,0.03]
[1737868161309,84.7699,258.41,258.32,0.03]
[1737868163922,84.7699,258.4,258.32,0.03]
[1737868166435,80.9,258.4,258.32,0.03]
[1737868169028,80.9,258.39,258.32,0.03]
[1737868171010,84.7701,258.39,258.32,0.03]
[1737868174825,23.776884,258.38,258.32,0.03]
[1737868175023,80.9,258.37,258.32,0.03]
[1737868176640,84.7704,258.37,258.32,0.03]
[1737868178140,80.9,258.37,258.32,0.03]
[1737868180922,80.9,258.36,258.32,0.03]
[1737868181117,80.9,258.35,258.32,0.03]
[1737868181318,80.9,258.41,258.32,0.03]
[1737868181535,80.9,258.41,258.33,20.0]
[1737868181728,80.9,258.41,258.34,20.0]
[1737868181928,80.9,258.41,258.34,20.38699301]
[1737868182645,80.9,258.41,258.35,2.72]
[1737868183031,80.9,258.41,258.38,20.0]
[1737868183339,80.9,258.48,258.39,20.0]
[1737868183863,80.9,258.48,258.4,20.0]
[1737868185125,80.9,258.48,258.41,3.8698]